bitfinex-derivatives/quotes_BTCF0:USTF0_20230702
["timestamp","ask_amount","ask_price","bid_price","bid_amount"]
[1688293191157,0.01822969,30560.0,30557.0,0.3303]
[1688293191356,0.019635,30559.0,30557.0,0.3303]
[1688293191745,0.01822969,30558.0,30557.0,0.3303]
[1688293191947,0.03786469,30558.0,30557.0,0.3303]
[1688293200159,0.04026469,30558.0,30557.0,0.3303]
[1688293201963,0.06639615,30558.0,30557.0,0.3303]
[1688293204663,0.06639615,30558.0,30557.0,0.33011214]
[1688293206063,0.07229816,30558.0,30557.0,0.33011214]
[1688293218977,0.07229816,30558.0,30557.0,0.33000872]
[1688293233091,0.07229816,30558.0,30557.0,0.33026444]
[1688293235682,0.06639615,30558.0,30557.0,0.33590795]
[1688293247903,0.06639615,30558.0,30557.0,0.00589923]
[1688293248997,0.42719615,30558.0,30557.0,0.00589923]
[1688293251297,0.42719615,30558.0,30557.0,0.32849923]
[1688293259607,0.06639615,30558.0,30557.0,0.32849923]
[1688293262910,0.06639615,30558.0,30557.0,0.00589923]
[1688293263107,0.06639615,30558.0,30557.0,0.00564351]
[1688293263612,0.06639615,30558.0,30556.0,0.00049085]
[1688293263802,0.01822969,30557.0,30556.0,0.00049085]
[1688293264116,0.03786569,30557.0,30556.0,0.00650947]
[1688293265206,0.39866569,30557.0,30556.0,0.00650947]
[1688293270113,0.03786569,30557.0,30556.0,0.00650947]
[1688293270308,0.39866569,30557.0,30556.0,0.00650947]
[1688293271111,0.39866569,30557.0,30556.0,0.00643729]
[1688293283919,0.39866569,30557.0,30556.0,0.0062957]
[1688293284720,0.39866569,30557.0,30556.0,0.3168957]
[1688293288226,0.03786569,30557.0,30556.0,0.3168957]
[1688293297232,0.03786569,30557.0,30556.0,0.31675623]
[1688293302652,0.03786569,30557.0,30556.0,0.33639323]
[1688293305047,0.019636,30557.0,30556.0,0.33639323]
[1688293305849,0.03786569,30557.0,30556.0,0.33639323]
[1688293311456,0.03786569,30557.0,30556.0,0.33620855]
[1688293313851,0.03786569,30557.0,30556.0,0.31657155]
[1688293319961,0.019636,30557.0,30556.0,0.355057]
[1688293320555,0.019636,30557.0,30556.0,0.37328669]
[1688293323567,0.019636,30557.0,30556.0,0.35443724]
[1688293323756,0.019636,30557.0,30556.0,0.33620755]
[1688293324366,0.019636,30557.0,30556.0,0.35443724]
[1688293325165,0.019636,30557.0,30556.0,0.35448136]
[1688293325359,0.019636,30557.0,30556.0,0.33625167]
[1688293325864,0.019636,30557.0,30556.0,0.69705167]
[1688293326461,0.03786569,30557.0,30556.0,0.69705167]
[1688293327168,0.019636,30557.0,30556.0,0.69705167]
[1688293327365,0.03786569,30557.0,30556.0,0.69705167]
[1688293327567,0.03786569,30557.0,30556.0,0.33625167]
[1688293327769,0.03786569,30557.0,30556.0,0.31661567]
[1688293337573,0.03786569,30557.0,30556.0,0.33625167]
[1688293337757,0.03786569,30557.0,30556.0,0.33605963]
[1688293338173,0.03786569,30557.0,30556.0,0.33632496]
[1688293344776,0.02853146,30558.0,30556.0,0.34282496]
[1688293345085,0.02853146,30558.0,30556.0,0.70362496]
[1688293345472,0.02853146,30558.0,30557.0,0.03707914]
[1688293345684,0.02853146,30558.0,30557.0,0.06238196]
[1688293345981,0.0024,30558.0,30557.0,0.06238196]
[1688293346170,0.0024,30558.0,30557.0,0.06276781]
[1688293350681,0.0024,30558.0,30557.0,0.0626476]
[1688293353482,0.0024,30558.0,30557.0,0.4234476]
[1688293357384,0.0024,30558.0,30557.0,0.38648867]
[1688293357686,0.0024,30558.0,30557.0,0.42356781]
[1688293359386,0.0024,30558.0,30557.0,0.40471836]
[1688293359776,0.0024,30558.0,30557.0,0.42356781]
[1688293362184,0.00227895,30558.0,30557.0,0.42356781]
[1688293373401,0.00227895,30558.0,30557.0,0.06276781]
[1688293373609,0.00227895,30558.0,30557.0,0.42356781]
[1688293375900,0.00227895,30558.0,30557.0,0.06276781]
[1688293376102,0.00227895,30558.0,30557.0,0.42356781]
[1688293377096,0.00227895,30558.0,30557.0,0.42349747]
[1688293377898,0.00227895,30558.0,30557.0,0.06269747]
[1688293378100,0.00227895,30558.0,30557.0,0.42349747]
[1688293383712,0.00227895,30558.0,30557.0,0.06269747]
[1688293383913,0.00227895,30558.0,30557.0,0.42349747]
[1688293391806,0.00227895,30558.0,30557.0,0.42334195]
[1688293393411,0.02191395,30558.0,30557.0,0.38626281]
[1688293394213,0.02191395,30558.0,30557.0,0.4044925]
[1688293394509,0.02191395,30558.0,30557.0,0.38626281]
[1688293395703,0.02191395,30558.0,30557.0,0.40511226]
[1688293395905,0.02191395,30558.0,30557.0,0.42334195]
[1688293397707,0.02191395,30558.0,30557.0,0.4044925]
[1688293398012,0.02191395,30558.0,30557.0,0.38626281]
[1688293398413,0.04014364,30558.0,30557.0,0.38626281]
[1688293399217,0.02191395,30558.0,30557.0,0.38626281]
[1688293399424,0.04014364,30558.0,30557.0,0.38626281]
[1688293399925,0.02191395,30558.0,30557.0,0.38626281]
[1688293403319,0.04014364,30558.0,30557.0,0.38626281]
[1688293404213,0.04014364,30558.0,30557.0,0.38602626]
[1688293405818,0.02191395,30558.0,30557.0,0.4231054]
[1688293406411,0.02191395,30558.0,30557.0,0.40487571]
[1688293407518,0.02191395,30558.0,30557.0,0.38602626]
[1688293410314,0.04014364,30558.0,30557.0,0.38602626]
[1688293411608,0.02191395,30558.0,30557.0,0.38602626]
[1688293411812,0.04014364,30558.0,30557.0,0.38602626]
[1688293414423,0.04014364,30558.0,30557.0,0.02522626]
[1688293418113,0.04014364,30558.0,30557.0,0.02498809]
[1688293427440,0.00227895,30558.0,30557.0,0.40401778]
[1688293427832,0.00227895,30558.0,30557.0,0.42286723]
[1688293428038,0.00227895,30558.0,30557.0,0.72626723]
[1688293431543,0.00227895,30558.0,30557.0,0.36546723]
[1688293431740,0.00227895,30558.0,30557.0,1.08686103]
[1688293437447,0.00227895,30558.0,30557.0,0.36526103]
[1688293437636,0.00227895,30558.0,30557.0,1.06863134]
[1688293438143,0.00227895,30558.0,30557.0,1.08686103]
[1688293442649,0.00227895,30558.0,30557.0,1.06863134]
[1688293442950,0.00227895,30558.0,30557.0,1.08686103]
[1688293443450,0.00227895,30558.0,30557.0,1.06863134]
[1688293443850,0.00227895,30558.0,30557.0,1.08686103]
[1688293444944,0.00227895,30558.0,30557.0,1.08675465]
[1688293447543,0.00227895,30558.0,30557.0,1.04967551]
[1688293448055,0.00227895,30558.0,30557.0,1.0679052]
[1688293449356,0.00227895,30558.0,30557.0,1.08675465]
[1688293450056,0.00227895,30558.0,30557.0,0.36515465]
[1688293450242,0.00227895,30558.0,30557.0,1.08675465]
[1688293452944,0.00227895,30558.0,30557.0,0.36515465]
[1688293453155,0.00227895,30558.0,30557.0,1.08675465]
[1688293454155,0.00215047,30558.0,30557.0,1.08675465]
[1688293455551,0.07527897,30560.0,30558.0,0.03707914]
[1688293455758,0.07527897,30560.0,30559.0,0.019635]
[1688293456055,0.07527897,30560.0,30559.0,0.0252975]
[1688293456256,0.07527897,30560.0,30559.0,0.02568151]
[1688293457150,0.09350866,30560.0,30559.0,0.02568151]
[1688293457557,0.07527897,30560.0,30559.0,0.02568151]
[1688293458352,0.09350866,30560.0,30559.0,0.02568151]
[1688293459657,0.07527897,30560.0,30559.0,0.02568151]
[1688293460856,0.09350866,30560.0,30559.0,0.02568151]
[1688293463157,0.07527897,30560.0,30559.0,0.02568151]
[1688293463460,0.09350866,30560.0,30559.0,0.02568151]
[1688293464062,0.09350866,30560.0,30559.0,0.38648151]
[1688293467069,0.07527897,30560.0,30559.0,0.38648151]
[1688293467460,0.07527897,30560.0,30559.0,0.02568151]
[1688293467662,0.07527897,30560.0,30559.0,0.38648151]
[1688293467961,0.09350866,30560.0,30559.0,0.38648151]
[1688293468166,0.07527897,30560.0,30559.0,0.02568151]
[1688293468463,0.09350866,30560.0,30559.0,0.38648151]
[1688293470568,0.09350866,30560.0,30559.0,0.38630875]
[1688293472269,0.07527897,30560.0,30559.0,0.38630875]
[1688293472966,0.09350866,30560.0,30559.0,0.02550875]
[1688293475468,0.07527897,30560.0,30559.0,0.02550875]
[1688293476269,0.02619297,30560.0,30559.0,0.02550875]
[1688293476472,0.06953409,30561.0,30559.0,0.02550875]
[1688293476665,0.06953409,30561.0,30559.0,0.04373844]
[1688293477258,0.09555685,30561.0,30559.0,0.04373844]
[1688293477867,0.09555685,30561.0,30560.0,0.335934]
[1688293478375,0.09555685,30561.0,30560.0,0.34197452]
[1688293479269,0.11610617,30561.0,30560.0,0.34197452]
[1688293479474,0.09787648,30561.0,30560.0,0.34197452]
[1688293480270,0.09555685,30561.0,30560.0,0.36020421]
[1688293481775,0.09555685,30561.0,30560.0,0.34197452]
[1688293487881,0.09555685,30561.0,30560.0,0.36020421]
[1688293488676,0.09555685,30561.0,30560.0,0.34197452]
[1688293489377,0.09555685,30561.0,30560.0,0.70277452]
[1688293490773,0.09555685,30561.0,30560.0,0.72100421]
[1688293490975,0.09555685,30561.0,30560.0,0.73985366]
[1688293491579,0.09555685,30561.0,30560.0,0.72162397]
[1688293491779,0.09555685,30561.0,30560.0,0.73985366]
[1688293492277,0.09555685,30561.0,30560.0,0.72162397]
[1688293493080,0.09555685,30561.0,30560.0,0.73985366]
[1688293493485,0.09555685,30561.0,30560.0,0.73975964]
[1688293494171,0.09555685,30561.0,30560.0,0.72152995]
[1688293494482,0.09555685,30561.0,30560.0,0.7026805]
[1688293498484,0.09555685,30561.0,30560.0,0.72091019]
[1688293499072,0.09555685,30561.0,30560.0,0.7026805]
[1688293499981,0.09555685,30561.0,30560.0,0.3418805]
[1688293500180,0.09555685,30561.0,30560.0,0.7026805]
[1688293500479,0.09555685,30561.0,30560.0,0.72152995]
[1688293501583,0.09555685,30561.0,30560.0,0.73975964]
[1688293502082,0.09555685,30561.0,30560.0,0.72152995]
[1688293502275,0.09555685,30561.0,30560.0,0.73975964]
[1688293502885,0.09555685,30561.0,30560.0,0.7026805]
[1688293505083,0.09555685,30561.0,30560.0,0.3418805]
[1688293505286,0.09555685,30561.0,30560.0,0.7026805]
[1688293506780,0.09555685,30561.0,30560.0,0.70258344]
[1688293509589,0.11378654,30561.0,30560.0,0.70258344]
[1688293509989,0.09555685,30561.0,30560.0,0.70258344]
[1688293510795,0.09542432,30561.0,30560.0,0.70258344]
[1688293512696,0.09542432,30561.0,30560.0,0.34178344]
[1688293513388,0.09542432,30561.0,30560.0,0.36063289]
[1688293513790,0.09542432,30561.0,30560.0,0.34178344]
[1688293514994,0.11365401,30561.0,30560.0,0.34178344]
[1688293515702,0.09542432,30561.0,30560.0,0.34178344]
[1688293516201,0.11365401,30561.0,30560.0,0.34178344]
[1688293516603,0.09542432,30561.0,30560.0,0.34178344]
[1688293517103,0.09542432,30561.0,30560.0,0.70258344]
[1688293517508,0.11365401,30561.0,30560.0,0.70258344]
[1688293518405,0.09542432,30561.0,30560.0,0.70258344]
[1688293518609,0.11365401,30561.0,30560.0,0.70258344]
[1688293518995,0.09542432,30561.0,30560.0,0.34178344]
[1688293519306,0.11365401,30561.0,30560.0,0.70258344]
[1688293519507,0.09542432,30561.0,30560.0,0.34178344]
[1688293519811,0.09542432,30561.0,30560.0,0.70258344]
[1688293521009,0.11365401,30561.0,30560.0,0.70258344]
[1688293521910,0.09542432,30561.0,30560.0,0.70258344]
[1688293523009,0.11365401,30561.0,30560.0,0.70258344]
[1688293523210,0.09542432,30561.0,30560.0,0.70258344]
[1688293524312,0.09542432,30561.0,30560.0,0.72143289]
[1688293524613,0.09542432,30561.0,30560.0,0.7212875]
[1688293524821,0.09542432,30561.0,30560.0,0.70243805]
[1688293527803,0.11365401,30561.0,30560.0,0.70243805]
[1688293528010,0.09542432,30561.0,30560.0,0.70243805]
[1688293528417,0.09542432,30561.0,30560.0,0.72066774]
[1688293528614,0.09542432,30561.0,30560.0,0.70243805]
[1688293530920,0.09542432,30561.0,30560.0,0.34163805]
[1688293531123,0.09542432,30561.0,30560.0,0.70243805]
[1688293531921,0.09542432,30561.0,30560.0,0.34163805]
[1688293532221,0.09542432,30561.0,30560.0,0.70243805]
[1688293534424,0.09542432,30561.0,30560.0,0.34163805]
[1688293534610,0.09542432,30561.0,30560.0,0.70243805]
[1688293536428,0.09542432,30561.0,30560.0,0.34163805]
[1688293536723,0.09542432,30561.0,30560.0,0.70243805]
[1688293536925,0.11365401,30561.0,30560.0,0.70243805]
[1688293537315,0.09542432,30561.0,30560.0,0.70243805]
[1688293539427,0.09542432,30561.0,30560.0,0.34150679]
[1688293539620,0.09542432,30561.0,30560.0,0.70230679]
[1688293543328,0.09542432,30561.0,30560.0,0.34150679]
[1688293543628,0.09542432,30561.0,30560.0,0.70230679]
[1688293546128,0.09542432,30561.0,30560.0,0.34150679]
[1688293546326,0.09542432,30561.0,30560.0,0.70230679]
[1688293546524,0.09542432,30561.0,30560.0,0.34150679]
[1688293546828,0.09542432,30561.0,30560.0,0.70230679]
[1688293547028,0.09542432,30561.0,30560.0,0.34150679]
[1688293547327,0.09542432,30561.0,30560.0,0.70230679]
[1688293547522,0.11365401,30561.0,30560.0,0.70230679]
[1688293548429,0.09542432,30561.0,30560.0,0.70230679]
[1688293549139,0.11365401,30561.0,30560.0,0.70230679]
[1688293549939,0.11365401,30561.0,30560.0,0.34150679]
[1688293550231,0.11365401,30561.0,30560.0,0.70230679]
[1688293550432,0.09542432,30561.0,30560.0,0.70230679]
[1688293551828,0.11365401,30561.0,30560.0,0.70230679]
[1688293552626,0.11365401,30561.0,30560.0,0.7021709]
[1688293554119,0.09542432,30561.0,30560.0,0.7021709]
[1688293555325,0.09542432,30561.0,30560.0,0.72102035]
[1688293555326,0.06300232,30561.0,30560.0,0.72102035]
[1688293555833,0.06300232,30561.0,30560.0,0.7021709]
[1688293557835,0.06284188,30561.0,30560.0,0.7021709]
[1688293568345,0.06284188,30561.0,30560.0,0.72040059]
[1688293568644,0.06284188,30561.0,30560.0,0.7021709]
[1688293568844,0.06284188,30561.0,30560.0,0.72102035]
[1688293570246,0.06284188,30561.0,30560.0,0.73925004]
[1688293570745,0.06284188,30561.0,30560.0,0.72102035]
[1688293571546,0.06284188,30561.0,30560.0,0.70196131]
[1688293573740,0.06284188,30561.0,30560.0,0.720191]
[1688293573944,0.06284188,30561.0,30560.0,0.70196131]
[1688293574952,0.06284188,30561.0,30560.0,0.34116131]
[1688293575153,0.06284188,30561.0,30560.0,0.70196131]
[1688293577952,0.06284188,30561.0,30560.0,0.34116131]
[1688293578151,0.06284188,30561.0,30560.0,0.70196131]
[1688293579052,0.06284188,30561.0,30560.0,0.34116131]
[1688293579250,0.06284188,30561.0,30560.0,0.70196131]
[1688293581445,0.06284188,30561.0,30560.0,0.34116131]
[1688293581646,0.06284188,30561.0,30560.0,0.70196131]
[1688293582051,0.04320788,30561.0,30560.0,0.70196131]
[1688293584160,0.04320788,30561.0,30560.0,0.70178294]
[1688293585151,0.06284088,30561.0,30560.0,0.70178294]
[1688293585546,0.04320788,30561.0,30560.0,0.70178294]
[1688293586557,0.06143757,30561.0,30560.0,0.70178294]
[1688293586865,0.04320788,30561.0,30560.0,0.70178294]
[1688293589155,0.04320788,30561.0,30560.0,0.72001263]
[1688293589462,0.04320788,30561.0,30560.0,0.72063239]
[1688293589962,0.04320788,30561.0,30560.0,0.73886208]
[1688293590852,0.04320788,30561.0,30560.0,0.34098294]
[1688293591051,0.04320788,30561.0,30560.0,0.70178294]
[1688293592059,0.04320788,30561.0,30560.0,0.34098294]
[1688293592566,0.04320788,30561.0,30560.0,0.70178294]
[1688293597067,0.06284088,30561.0,30560.0,0.70178294]
[1688293598370,0.06284088,30561.0,30560.0,0.70163933]
[1688293600673,0.06284088,30561.0,30560.0,0.34083933]
[1688293600864,0.06284088,30561.0,30560.0,0.70163933]
[1688293601262,0.06263716,30561.0,30560.0,0.71986902]
[1688293601476,0.06263716,30561.0,30560.0,0.70163933]
[1688293606468,0.06263716,30561.0,30560.0,0.71986902]
[1688293606677,0.06263716,30561.0,30560.0,0.70163933]
[1688293610375,0.06263716,30561.0,30560.0,0.71986902]
[1688293610977,0.04300416,30561.0,30560.0,0.70163933]
[1688293613179,0.06263716,30561.0,30560.0,0.70163933]
[1688293614779,0.06263716,30561.0,30560.0,0.70144604]
[1688293615181,0.04300416,30561.0,30560.0,0.70144604]
[1688293615584,0.06263716,30561.0,30560.0,0.70144604]
[1688293615881,0.08086685,30561.0,30560.0,0.70144604]
[1688293622392,0.06263716,30561.0,30560.0,0.70144604]
[1688293623878,0.08086685,30561.0,30560.0,0.70144604]
[1688293627891,0.08086685,30561.0,30560.0,0.34064604]
[1688293628091,0.08086685,30561.0,30560.0,0.70144604]
[1688293628491,0.08086685,30561.0,30560.0,0.7013748]
[1688293629699,0.08086685,30561.0,30560.0,0.36684052]
[1688293629885,0.08086685,30561.0,30560.0,0.29179198]
[1688293630090,0.08086685,30561.0,30560.0,0.00408355]
[1688293630296,0.06263716,30561.0,30560.0,0.00420061]
[1688293630486,0.06388545,30561.0,30560.0,0.00448946]
[1688293630691,0.06388545,30561.0,30560.0,0.00028885]
[1688293630893,0.06388545,30561.0,30560.0,0.00346845]
[1688293631495,0.0637081,30561.0,30560.0,0.00346845]
[1688293634287,0.0637081,30561.0,30560.0,0.02310245]
[1688293635510,0.03786269,30561.0,30560.0,0.02310245]
[1688293636795,0.05484409,30561.0,30560.0,0.00346845]
[1688293637002,0.05484409,30561.0,30557.0,0.019635]
[1688293637196,0.01822969,30560.0,30557.0,0.019635]
[1688293637395,0.019635,30559.0,30558.0,0.00027551]
[1688293638000,0.03786469,30559.0,30558.0,0.00027551]
[1688293638603,0.03786469,30559.0,30557.0,0.019635]
[1688293638798,0.019635,30559.0,30557.0,0.019635]
[1688293639102,0.03786469,30558.0,30557.0,0.019635]
[1688293644813,0.03786469,30558.0,30556.0,0.6712]
[1688293645012,0.019635,30558.0,30557.0,0.019636]
[1688293645208,0.03786469,30558.0,30557.0,0.019636]
[1688293645413,0.03786469,30558.0,30557.0,0.01991206]
[1688293648716,0.06430114,30558.0,30557.0,0.01991206]
[1688293651113,0.04466614,30558.0,30557.0,0.01991206]
[1688293651312,0.08744125,30565.0,30557.0,0.01991206]
[1688293651516,0.08744125,30565.0,30564.0,0.3938186]
[1688293651708,0.10442265,30571.0,30564.0,0.46784511]
[1688293651903,0.019628,30569.0,30564.0,0.46784511]
[1688293652301,0.02194763,30569.0,30565.0,0.03735078]
[1688293652510,0.02194763,30569.0,30566.0,0.01963]
[1688293652710,0.02194763,30569.0,30567.0,0.01822969]
[1688293652917,0.02194763,30569.0,30567.0,0.03785969]
[1688293653101,0.02194763,30569.0,30567.0,0.01963]
[1688293653305,0.019628,30569.0,30568.0,0.00026998]
[1688293653502,0.019628,30569.0,30568.0,0.01989898]
[1688293654811,0.019628,30569.0,30568.0,0.34859898]
[1688293655716,0.019628,30569.0,30568.0,0.36682867]
[1688293656106,0.019628,30569.0,30568.0,0.34859898]
[1688293658418,0.019628,30569.0,30568.0,0.32896998]
[1688293658610,0.019628,30569.0,30568.0,0.00026998]
[1688293659315,0.019628,30569.0,30565.0,0.334031]
[1688293660312,0.019628,30569.0,30566.0,0.01822969]
[1688293660517,0.019628,30569.0,30566.0,0.03813078]
[1688293660720,0.019628,30569.0,30566.0,0.01990109]
[1688293666610,0.019628,30569.0,30566.0,0.01969326]
[1688293667322,0.019628,30569.0,30566.0,0.01989069]
[1688293668025,0.3608,30568.0,30566.0,0.01989069]
[1688293668325,0.01963,30567.0,30566.0,0.01989069]
[1688293678826,0.01963,30567.0,30566.0,0.01981385]
[1688293679528,0.01963,30567.0,30566.0,0.01988535]
[1688293680841,0.11167398,30567.0,30566.0,0.01988535]
[1688293681134,0.01963,30567.0,30566.0,0.01988535]
[1688293681732,0.01948241,30567.0,30566.0,0.11136]
[1688293681923,0.01948241,30567.0,30566.0,0.09313031]
[1688293682826,0.01948241,30567.0,30566.0,0.07428086]
[1688293683433,0.01948241,30567.0,30566.0,0.43508086]
[1688293685430,0.01948241,30567.0,30566.0,0.38068535]
[1688293686531,0.01948241,30567.0,30566.0,0.39891504]
[1688293686738,0.01948241,30567.0,30566.0,0.38068535]
[1688293687842,0.01948241,30567.0,30566.0,0.01988535]
[1688293695145,0.01948241,30567.0,30566.0,0.01972207]
[1688293707157,0.01948241,30567.0,30566.0,0.01950738]
[1688293711147,0.01931527,30567.0,30566.0,0.01950738]
[1688293720658,0.01931527,30567.0,30566.0,0.09275234]
[1688293722065,0.01931527,30567.0,30566.0,0.07390289]
[1688293723870,0.01931527,30567.0,30566.0,0.01938458]
[1688293724361,0.3974104,30567.0,30564.0,0.049078]
[1688293724563,0.3974104,30567.0,30563.0,0.05938373]
[1688293724763,0.7226104,30567.0,30563.0,0.05938373]
[1688293725354,0.7226104,30567.0,30564.0,0.00030649]
[1688293725569,0.7226104,30567.0,30563.0,0.058891]
[1688293726585,0.7226104,30567.0,30564.0,0.00038311]
[1688293726790,0.7226104,30567.0,30564.0,0.02001411]
[1688293732785,0.7226104,30567.0,30564.0,0.00038311]
[1688293739087,0.3618104,30567.0,30564.0,0.00038311]
[1688293739292,0.3608,30566.0,30564.0,0.00038311]
[1688293739488,0.01963,30565.0,30564.0,0.00038311]
[1688293739975,0.34213,30565.0,30564.0,0.00038311]
[1688293740583,0.34213,30565.0,30564.0,0.00022887]
[1688293741388,0.34213,30565.0,30563.0,0.058891]
[1688293741985,0.34213,30565.0,30563.0,0.03876824]
[1688293742491,0.34213,30565.0,30564.0,0.3226]
[1688293753394,0.34213,30565.0,30564.0,0.342231]
[1688293754193,0.34213,30565.0,30564.0,0.34211283]
[1688293761811,0.34196096,30565.0,30564.0,0.34211283]
[1688293772511,0.34196096,30565.0,30564.0,0.32248183]
[1688293772713,0.01946096,30565.0,30564.0,0.34211283]
[1688293773309,0.01946096,30565.0,30564.0,0.37919197]
[1688293774214,0.01946096,30565.0,30564.0,0.36073976]
[1688293774611,0.01946096,30565.0,30564.0,0.37896945]
[1688293775916,0.01946096,30565.0,30564.0,0.73976945]
[1688293779916,0.01946096,30565.0,30564.0,0.37896945]
[1688293786618,0.01946096,30565.0,30564.0,0.36012]
[1688293786812,0.01946096,30565.0,30564.0,0.3418032]
[1688293787020,0.01946096,30565.0,30564.0,0.36003289]
[1688293788526,0.01946096,30565.0,30564.0,0.3418032]
[1688293788825,0.01946096,30565.0,30564.0,0.36003289]
[1688293792122,0.01946096,30565.0,30564.0,0.37888234]
[1688293794229,0.01946096,30565.0,30564.0,0.73968234]
[1688293797028,0.01946096,30565.0,30564.0,0.76653005]
[1688293799220,0.01946096,30565.0,30564.0,0.73968234]
[1688293800232,0.01946096,30565.0,30564.0,0.73947493]
[1688293806034,0.03580148,30565.0,30564.0,0.73947493]
[1688293814938,0.03580148,30565.0,30564.0,0.73927185]
[1688293821640,0.03580148,30565.0,30564.0,0.72104216]
[1688293822036,0.03580148,30565.0,30564.0,0.73927185]
[1688293827651,0.03580148,30565.0,30564.0,0.72104216]
[1688293828153,0.03580148,30565.0,30564.0,0.70219271]
[1688293829258,0.03580148,30565.0,30564.0,0.72018715]
[1688293829552,0.03580148,30565.0,30564.0,0.70195746]
[1688293830153,0.03580148,30565.0,30564.0,0.72018715]
[1688293830654,0.03580148,30565.0,30564.0,0.35938715]
[1688293830847,0.03580148,30565.0,30564.0,0.72018715]
[1688293831551,0.03580148,30565.0,30564.0,0.70195746]
[1688293831747,0.03580148,30565.0,30564.0,0.34115746]
[1688293831951,0.03580148,30565.0,30564.0,0.70195746]
[1688293832756,0.03580148,30565.0,30564.0,0.72018715]
[1688293832962,0.03580148,30565.0,30564.0,0.70195746]
[1688293834261,0.03580148,30565.0,30564.0,0.72018715]
[1688293835265,0.03580148,30565.0,30564.0,0.7390366]
[1688293835771,0.01946096,30565.0,30564.0,0.7390366]
[1688293841878,0.01946096,30565.0,30564.0,0.3782366]
[1688293842086,0.01946096,30565.0,30564.0,0.7390366]
[1688293844184,0.01946096,30565.0,30564.0,0.73890011]
[1688293844984,0.01946096,30565.0,30564.0,0.37810011]
[1688293845189,0.01946096,30565.0,30564.0,0.73890011]
[1688293848282,0.01946096,30565.0,30564.0,0.37810011]
[1688293848586,0.01946096,30565.0,30564.0,0.73890011]
[1688293850285,0.01946096,30565.0,30564.0,0.72067042]
[1688293851276,0.01946096,30565.0,30564.0,0.73890011]
[1688293851989,0.01946096,30565.0,30564.0,0.37810011]
[1688293853089,0.01946096,30565.0,30564.0,0.35987042]
[1688293854089,0.01946096,30565.0,30564.0,0.37810011]
[1688293856792,0.01946096,30565.0,30564.0,0.3784359]
[1688293857694,0.01946096,30565.0,30564.0,0.37820163]
[1688293858591,0.01946096,30565.0,30564.0,0.73900163]
[1688293860891,0.01946096,30565.0,30564.0,0.72077194]
[1688293861189,0.01946096,30565.0,30563.0,0.019632]
[1688293861493,0.01946096,30565.0,30562.0,0.00049076]
[1688293861494,0.3608,30564.0,30562.0,0.00049076]
[1688293861691,0.019632,30563.0,30558.0,0.738188]
[1688293861898,0.330632,30563.0,30559.0,0.019634]
[1688293863896,0.330632,30563.0,30559.0,0.07402951]
[1688293865190,0.330632,30563.0,30559.0,0.019634]
[1688293872802,0.650332,30563.0,30559.0,0.019634]
[1688293873310,0.67600016,30563.0,30559.0,0.019634]
[1688293874203,0.67600016,30563.0,30560.0,0.33]
[1688293874396,0.67600016,30563.0,30560.0,0.349634]
[1688293875801,0.67600016,30563.0,30560.0,0.34955028]
[1688293879511,0.67600016,30563.0,30561.0,0.00372247]
[1688293879708,0.67600016,30563.0,30560.0,0.34955028]
[1688293880003,0.67600016,30563.0,30561.0,0.00381426]
[1688293880196,0.67600016,30563.0,30560.0,0.34955028]
[1688293880507,0.67600016,30563.0,30561.0,0.00381414]
[1688293880804,0.67600016,30563.0,30560.0,0.34955028]
[1688293881007,0.67600016,30563.0,30562.0,0.00381404]
[1688293881300,0.67600016,30563.0,30560.0,0.34955028]
[1688293881601,0.67600016,30563.0,30562.0,0.00381388]
[1688293881792,0.67600016,30563.0,30561.0,0.00381367]
[1688293881992,0.67600016,30563.0,30560.0,0.34955028]
[1688293882193,0.67600016,30563.0,30561.0,0.00381375]
[1688293882401,0.67600016,30563.0,30561.0,0.02344675]
[1688293882604,0.67600016,30563.0,30561.0,0.019633]
[1688293882901,0.67600016,30563.0,30562.0,0.00381366]
[1688293882902,0.67578782,30563.0,30562.0,0.00381366]
[1688293887906,0.67578782,30563.0,30562.0,0.02344666]
[1688293888408,0.35608782,30563.0,30562.0,0.04167635]
[1688293888705,0.35608782,30563.0,30562.0,0.0605258]
[1688293888909,0.35608782,30563.0,30562.0,0.04229611]
[1688293889810,0.35608782,30563.0,30562.0,0.02344666]
[1688293891709,0.35608782,30563.0,30562.0,0.00381366]
[1688293892314,0.35608782,30563.0,30560.0,0.32991628]
[1688293892515,0.35608782,30563.0,30562.0,0.00381146]
[1688293892815,0.35608782,30563.0,30560.0,0.32991628]
[1688293893017,0.35608782,30563.0,30562.0,0.00381124]
[1688293893413,0.35608782,30563.0,30560.0,0.32991628]
[1688293893606,0.35608782,30563.0,30562.0,0.00381123]
[1688293893806,0.35608782,30563.0,30561.0,0.00381118]
[1688293894012,0.35608782,30563.0,30560.0,0.34814597]
[1688293894315,0.35608782,30563.0,30562.0,0.00381107]
[1688293894616,0.35608782,30563.0,30560.0,0.32991628]
[1688293894815,0.35608782,30563.0,30562.0,0.00381088]
[1688293895014,0.35608782,30563.0,30561.0,0.0038109]
[1688293895217,0.35608782,30563.0,30560.0,0.32991628]
[1688293895519,0.35608782,30563.0,30561.0,0.0038108]
[1688293895911,0.35608782,30563.0,30560.0,0.32991628]
[1688293896111,0.35608782,30563.0,30562.0,0.00381064]
[1688293896311,0.35608782,30563.0,30561.0,0.00381062]
[1688293896519,0.35608782,30563.0,30560.0,0.32991628]
[1688293896712,0.35608782,30563.0,30562.0,0.00381048]
[1688293897113,0.35608782,30563.0,30560.0,0.32980409]
[1688293897420,0.35608782,30563.0,30562.0,0.00381042]
[1688293897620,0.35608782,30563.0,30561.0,0.00381034]
[1688293897816,0.35591294,30563.0,30561.0,0.00381034]
[1688293898018,0.35591294,30563.0,30560.0,0.32980409]
[1688293899821,0.35591294,30563.0,30560.0,0.34803378]
[1688293900217,0.35591294,30563.0,30560.0,0.34865354]
[1688293900516,0.35591294,30563.0,30561.0,0.01822969]
[1688293901611,0.35591294,30563.0,30560.0,0.34865354]
[1688293901916,0.35591294,30563.0,30560.0,0.34803378]
[1688293903025,0.35591294,30563.0,30561.0,0.00380912]
[1688293903221,0.35591294,30563.0,30560.0,0.34803378]
[1688293903421,0.35591294,30563.0,30560.0,0.32980409]
[1688293903621,0.35591294,30563.0,30561.0,0.00380899]
[1688293904016,0.35591294,30563.0,30560.0,0.34803378]
[1688293904225,0.35591294,30563.0,30562.0,0.00380883]
[1688293904521,0.35591294,30563.0,30560.0,0.34803378]
[1688293904825,0.35591294,30563.0,30562.0,0.00380872]
[1688293905015,0.35591294,30563.0,30561.0,0.00380868]
[1688293905216,0.35591294,30563.0,30560.0,0.32980409]
[1688293910129,0.00231963,30562.0,30560.0,0.32966237]
[1688293910430,0.019633,30561.0,30560.0,0.32966237]
[1688293918132,0.019633,30561.0,30560.0,0.33346815]
[1688293918631,0.019633,30561.0,30560.0,0.35169784]
[1688293919229,0.019633,30561.0,30560.0,0.33346815]
[1688293920024,0.019633,30561.0,30558.0,0.00049082]
[1688293920236,0.01884945,30560.0,30557.0,0.3139]
[1688293920425,0.3608,30558.0,30557.0,0.3139]
[1688293920621,0.39928445,30558.0,30557.0,0.2765615]